[Event "*** Titled Tuesday Blitz"]
[Site "Chess.com"]
[Date "2019.05.07"]
[Round "5"]
[White "Vamostodorecto"]
[Black "jacky72"]
[Result "0-1"]
[WhiteElo "2408"]
[BlackElo "2631"]
[TimeControl "180+2"]
[EndTime "14:07:29 PDT"]
[Termination "jacky72 won by resignation"]

1. d4 {[%clk 0:02:57.9]} 1... Nf6 {[%clk 0:03:00.4]} 2. c4 {[%clk 0:02:58.2]}
2... g6 {[%clk 0:03:01.4]} 3. Nc3 {[%clk 0:02:59.1]} 3... Bg7 {[%clk 0:03:02.9]}
4. e4 {[%clk 0:02:59.8]} 4... O-O {[%clk 0:03:04.8]} 5. Be2 {[%clk 0:03:01.1]}
5... d6 {[%clk 0:03:05.3]} 6. Nf3 {[%clk 0:03:02.7]} 6... e5 {[%clk 0:03:06]} 7.
O-O {[%clk 0:03:04.2]} 7... Na6 {[%clk 0:03:07.3]} 8. Bg5 {[%clk 0:02:57.5]}
8... Qe8 {[%clk 0:02:59.3]} 9. dxe5 {[%clk 0:02:53.1]} 9... dxe5 {[%clk
0:03:00.2]} 10. Nd5 {[%clk 0:02:42.1]} 10... Nxe4 {[%clk 0:02:49.8]} 11. Be7
{[%clk 0:02:38.1]} 11... Be6 {[%clk 0:02:46.1]} 12. Bxf8 {[%clk 0:02:30.3]}
12... Qxf8 {[%clk 0:02:48]} 13. Nd2 {[%clk 0:02:22.3]} 13... Nd6 {[%clk
0:02:41.1]} 14. Rc1 {[%clk 0:02:03.1]} 14... c6 {[%clk 0:02:38.3]} 15. Ne3
{[%clk 0:02:01.5]} 15... Nc7 {[%clk 0:02:34.2]} 16. c5 {[%clk 0:01:57.6]} 16...
Ndb5 {[%clk 0:02:34.4]} 17. Ndc4 {[%clk 0:01:51.2]} 17... Rd8 {[%clk 0:02:34.4]}
18. Qa4 {[%clk 0:01:43.1]} 18... Nd4 {[%clk 0:02:31]} 19. Bd1 {[%clk 0:01:24]}
19... Qxc5 {[%clk 0:02:31.5]} 20. b4 {[%clk 0:01:19.8]} 20... Qe7 {[%clk
0:02:27.1]} 21. Qxa7 {[%clk 0:01:18.9]} 21... Ncb5 {[%clk 0:02:21.1]} 22. Qc5
{[%clk 0:01:16.3]} 22... Qg5 {[%clk 0:02:12.2]} 23. f4 {[%clk 0:01:13.1]} 23...
Qh4 {[%clk 0:02:05.4]} 24. fxe5 {[%clk 0:01:11.1]} 24... Bh6 {[%clk 0:01:58.9]}
25. Bb3 {[%clk 0:00:37.8]} 25... Bxc4 {[%clk 0:01:52.2]} 26. Nxc4 {[%clk
0:00:20.1]} 26... Bxc1 {[%clk 0:01:46.7]} 27. Nd6 {[%clk 0:00:20.4]} 27... Nxd6
{[%clk 0:01:48.1]} 28. exd6 {[%clk 0:00:18]} 28... Ne2+ {[%clk 0:01:48.7]} 29.
Kh1 {[%clk 0:00:14.8]} 29... Ng3+ {[%clk 0:01:49.8]} 30. Kg1 {[%clk 0:00:15.2]}
30... Nxf1 {[%clk 0:01:49.1]} 31. Qxc1 {[%clk 0:00:15.2]} 31... Qxh2+ {[%clk
0:01:48.9]} 32. Kf2 {[%clk 0:00:14.9]} 32... Ng3 {[%clk 0:01:46.7]} 33. Qf4
{[%clk 0:00:14.2]} 33... Nh1+ {[%clk 0:01:47.8]} 0-1

[Event "*** Titled Tuesday Blitz"]
[Site "Chess.com"]
[Date "2019.05.07"]
[Round "5"]
[White "Chessdude1987"]
[Black "aa175"]
[Result "1-0"]
[WhiteElo "2115"]
[BlackElo "1960"]
[TimeControl "180+2"]
[EndTime "14:07:52 PDT"]
[Termination "Chessdude1987 won by checkmate"]

1. e4 {[%clk 0:02:59]} 1... e5 {[%clk 0:02:56]} 2. f4 {[%clk 0:02:58.5]} 2...
exf4 {[%clk 0:02:55.5]} 3. Bc4 {[%clk 0:02:59.1]} 3... Qh4+ {[%clk 0:02:46.7]}
4. Kf1 {[%clk 0:02:59.5]} 4... Nh6 {[%clk 0:02:39.9]} 5. Nf3 {[%clk 0:02:59.7]}
5... Qh5 {[%clk 0:02:33.7]} 6. Nc3 {[%clk 0:02:46.5]} 6... Ng4 {[%clk
0:01:58.1]} 7. Nd5 {[%clk 0:02:25.3]} 7... Bd6 {[%clk 0:00:50.6]} 8. d4 {[%clk
0:02:10.7]} 8... g5 {[%clk 0:00:36.9]} 9. e5 {[%clk 0:02:00.5]} 9... c6 {[%clk
0:00:22.2]} 10. Nxf4 {[%clk 0:01:36.8]} 10... gxf4 {[%clk 0:00:13.5]} 11. exd6
{[%clk 0:01:36.9]} 11... Rg8 {[%clk 0:00:02.6]} 12. Bxf4 {[%clk 0:01:01.6]}
12... Kf8 {[%clk 0:00:02.4]} 13. Qe2 {[%clk 0:00:37.3]} 13... Kg7 {[%clk
0:00:02.4]} 14. h3 {[%clk 0:00:32.4]} 14... f6 {[%clk 0:00:02.4]} 15. Kg1 {[%clk
0:00:27.1]} 15... Rf8 {[%clk 0:00:02.1]} 16. hxg4 {[%clk 0:00:27.2]} 16... Qxg4
{[%clk 0:00:02.4]} 17. Qe7+ {[%clk 0:00:27.3]} 17... Kg6 {[%clk 0:00:02.3]} 18.
Qxh7# {[%clk 0:00:27.3]} 1-0

[Event "*** Titled Tuesday Blitz"]
[Site "Chess.com"]
[Date "2019.05.07"]
[Round "5"]
[White "GuerrieroFromLevant"]
[Black "Jenia84"]
[Result "0-1"]
[WhiteElo "2267"]
[BlackElo "2259"]
[TimeControl "180+2"]
[EndTime "14:07:54 PDT"]
[Termination "Jenia84 won by resignation"]

1. e4 {[%clk 0:03:01.9]} 1... e5 {[%clk 0:03:00]} 2. Nf3 {[%clk 0:03:01]} 2...
Nc6 {[%clk 0:03:00.4]} 3. Bc4 {[%clk 0:03:00.3]} 3... Bc5 {[%clk 0:03:00.9]} 4.
O-O {[%clk 0:03:00.7]} 4... Nf6 {[%clk 0:02:59.2]} 5. d3 {[%clk 0:03:00.7]} 5...
O-O {[%clk 0:02:56.1]} 6. c3 {[%clk 0:02:58.3]} 6... d6 {[%clk 0:02:55.3]} 7. a4
{[%clk 0:02:53.1]} 7... a6 {[%clk 0:02:54.5]} 8. b4 {[%clk 0:02:46.2]} 8... Bb6
{[%clk 0:02:54.9]} 9. Na3 {[%clk 0:02:36.2]} 9... Be6 {[%clk 0:02:53.9]} 10. Qb3
{[%clk 0:02:35.2]} 10... Bxc4 {[%clk 0:02:53.4]} 11. Nxc4 {[%clk 0:02:35.9]}
11... Ba7 {[%clk 0:02:53]} 12. Bg5 {[%clk 0:02:36.2]} 12... h6 {[%clk
0:02:52.1]} 13. Bh4 {[%clk 0:02:34.2]} 13... Qe7 {[%clk 0:02:51.3]} 14. Ne3
{[%clk 0:02:34.4]} 14... Bxe3 {[%clk 0:02:43.8]} 15. fxe3 {[%clk 0:02:36.3]}
15... Qe6 {[%clk 0:02:44.6]} 16. Qxe6 {[%clk 0:02:29.5]} 16... fxe6 {[%clk
0:02:44.7]} 17. Bxf6 {[%clk 0:02:29.7]} 17... Rxf6 {[%clk 0:02:44.5]} 18. Nh4
{[%clk 0:02:30.9]} 18... Ne7 {[%clk 0:02:37.5]} 19. g4 {[%clk 0:02:29.8]} 19...
Raf8 {[%clk 0:02:29.7]} 20. Ng2 {[%clk 0:02:25.6]} 20... g5 {[%clk 0:02:29.7]}
21. Rxf6 {[%clk 0:02:21.8]} 21... Rxf6 {[%clk 0:02:30]} 22. Rf1 {[%clk
0:02:23.3]} 22... Kg7 {[%clk 0:02:30.2]} 23. Rxf6 {[%clk 0:02:23.7]} 23... Kxf6
{[%clk 0:02:31.2]} 24. Kf2 {[%clk 0:02:25.3]} 24... Nc6 {[%clk 0:02:24.7]} 25.
Ne1 {[%clk 0:02:25.3]} 25... a5 {[%clk 0:02:25.2]} 26. b5 {[%clk 0:02:25.9]}
26... Ne7 {[%clk 0:02:23.3]} 27. Nf3 {[%clk 0:02:24]} 27... Ng6 {[%clk
0:02:21.6]} 28. Ke2 {[%clk 0:02:22.8]} 28... Ke7 {[%clk 0:02:21.3]} 29. Kd2
{[%clk 0:02:22.7]} 29... d5 {[%clk 0:02:22.5]} 30. exd5 {[%clk 0:02:22.1]} 30...
exd5 {[%clk 0:02:23.1]} 31. c4 {[%clk 0:02:14.3]} 31... c6 {[%clk 0:02:14.8]}
32. c5 {[%clk 0:01:58.3]} 32... Ke6 {[%clk 0:02:14.1]} 33. d4 {[%clk 0:01:58.9]}
33... e4 {[%clk 0:01:56.7]} 34. Ne1 {[%clk 0:01:59.8]} 34... Kd7 {[%clk
0:01:54.3]} 35. Nc2 {[%clk 0:01:58.7]} 35... Nh4 {[%clk 0:01:54.6]} 36. Ke2
{[%clk 0:01:57.1]} 36... Nf3 {[%clk 0:01:54.1]} 37. h3 {[%clk 0:01:52.8]} 37...
Ng1+ {[%clk 0:01:50.2]} 38. Kf2 {[%clk 0:01:53.7]} 38... Nf3 {[%clk 0:01:50.2]}
39. Ke2 {[%clk 0:01:53.4]} 39... Kc7 {[%clk 0:01:46.5]} 40. Na1 {[%clk
0:01:51.4]} 40... b6 {[%clk 0:01:45]} 41. Nb3 {[%clk 0:01:51]} 41... Ng1+ {[%clk
0:01:43.6]} 42. Kf2 {[%clk 0:01:49.5]} 42... Nf3 {[%clk 0:01:43.7]} 43. Ke2
{[%clk 0:01:48.7]} 43... cxb5 {[%clk 0:01:44.5]} 44. axb5 {[%clk 0:01:49.3]}
44... a4 {[%clk 0:01:45.4]} 45. Nc1 {[%clk 0:01:47]} 45... a3 {[%clk 0:01:43.2]}
46. Na2 {[%clk 0:01:48.4]} 46... Ng1+ {[%clk 0:01:40.4]} 47. Kf2 {[%clk
0:01:44.8]} 47... Nf3 {[%clk 0:01:41.2]} 48. Nb4 {[%clk 0:01:42.2]} 48... bxc5
{[%clk 0:01:41.8]} 49. dxc5 {[%clk 0:01:43]} 49... d4 {[%clk 0:01:42.6]} 50.
exd4 {[%clk 0:01:42.8]} 50... Nxd4 {[%clk 0:01:43.1]} 51. b6+ {[%clk 0:01:44.1]}
51... Kb7 {[%clk 0:01:43.3]} 52. Ke3 {[%clk 0:01:45.5]} 52... Nb3 {[%clk
0:01:42.2]} 53. Kxe4 {[%clk 0:01:40.9]} 53... Nxc5+ {[%clk 0:01:43.2]} 54. Kf5
{[%clk 0:01:40.3]} 54... Kxb6 {[%clk 0:01:38.3]} 55. Kg6 {[%clk 0:01:41.3]}
55... Nd3 {[%clk 0:01:37.3]} 56. Kxh6 {[%clk 0:01:40]} 56... Nxb4 {[%clk
0:01:37.7]} 0-1

[Event "*** Titled Tuesday Blitz"]
[Site "Chess.com"]
[Date "2019.05.07"]
[Round "5"]
[White "dopolian"]
[Black "fidezivkovic"]
[Result "1-0"]
[WhiteElo "2256"]
[BlackElo "2287"]
[TimeControl "180+2"]
[EndTime "14:08:07 PDT"]
[Termination "dopolian won by resignation"]

1. e4 {[%clk 0:03:01.9]} 1... c5 {[%clk 0:03:00.2]} 2. Nf3 {[%clk 0:03:00.9]}
2... g6 {[%clk 0:03:00.4]} 3. d3 {[%clk 0:02:59.2]} 3... Bg7 {[%clk 0:02:59.4]}
4. g3 {[%clk 0:02:59.4]} 4... Nc6 {[%clk 0:02:57.7]} 5. Bg2 {[%clk 0:03:00.1]}
5... d6 {[%clk 0:02:55.2]} 6. O-O {[%clk 0:03:00.7]} 6... Nf6 {[%clk 0:02:53]}
7. Nc3 {[%clk 0:02:59.1]} 7... O-O {[%clk 0:02:51]} 8. Bf4 {[%clk 0:02:50.9]}
8... Bg4 {[%clk 0:02:44.3]} 9. h3 {[%clk 0:02:51.1]} 9... Bxf3 {[%clk
0:02:42.8]} 10. Bxf3 {[%clk 0:02:51.7]} 10... Nd4 {[%clk 0:02:35.1]} 11. Bg2
{[%clk 0:02:52.7]} 11... Nd7 {[%clk 0:02:33.1]} 12. Rb1 {[%clk 0:02:49.1]} 12...
Rb8 {[%clk 0:02:32.1]} 13. Ne2 {[%clk 0:02:47.8]} 13... Qa5 {[%clk 0:02:21.2]}
14. Nxd4 {[%clk 0:02:46.7]} 14... cxd4 {[%clk 0:02:20.2]} 15. a3 {[%clk
0:02:46.3]} 15... Rbc8 {[%clk 0:02:16.4]} 16. Qe2 {[%clk 0:02:41.4]} 16... Rc7
{[%clk 0:02:05.8]} 17. Bd2 {[%clk 0:02:25.5]} 17... Qa4 {[%clk 0:01:37.4]} 18.
b3 {[%clk 0:02:05.7]} 18... Qxa3 {[%clk 0:01:35.7]} 19. Ra1 {[%clk 0:02:06.8]}
19... Qc5 {[%clk 0:01:33.4]} 20. Rfc1 {[%clk 0:02:06.1]} 20... a6 {[%clk
0:01:32.7]} 21. f4 {[%clk 0:02:01.6]} 21... Rfc8 {[%clk 0:01:25.1]} 22. h4
{[%clk 0:01:53.7]} 22... Qb5 {[%clk 0:01:20.1]} 23. Ra5 {[%clk 0:01:49]} 23...
Qb6 {[%clk 0:01:20.2]} 24. Ra2 {[%clk 0:01:46.1]} 24... Qb5 {[%clk 0:01:20.4]}
25. Ra5 {[%clk 0:01:45.7]} 25... Qb6 {[%clk 0:01:20.7]} 26. Ra2 {[%clk
0:01:46.5]} 26... Qa7 {[%clk 0:01:14.3]} 27. Bh3 {[%clk 0:01:42.1]} 27... b6
{[%clk 0:01:01.2]} 28. h5 {[%clk 0:01:38.5]} 28... Rf8 {[%clk 0:00:53.7]} 29.
hxg6 {[%clk 0:01:37.9]} 29... hxg6 {[%clk 0:00:52.8]} 30. Kg2 {[%clk 0:01:28.9]}
30... e6 {[%clk 0:00:51.5]} 31. Bb4 {[%clk 0:01:28.3]} 31... Nc5 {[%clk
0:00:51.4]} 32. Bxc5 {[%clk 0:01:21.3]} 32... Rxc5 {[%clk 0:00:45.6]} 33. f5
{[%clk 0:01:20.6]} 33... exf5 {[%clk 0:00:42.8]} 34. exf5 {[%clk 0:01:21.7]}
34... gxf5 {[%clk 0:00:42.7]} 35. Rh1 {[%clk 0:01:07.7]} 35... Re8 {[%clk
0:00:38]} 36. Qxe8+ {[%clk 0:01:06.4]} 1-0

[Event "*** Titled Tuesday Blitz"]
[Site "Chess.com"]
[Date "2019.05.07"]
[Round "5"]
[White "Denis_Palkovich"]
[Black "PaulfromSPb"]
[Result "0-1"]
[WhiteElo "2263"]
[BlackElo "2670"]
[TimeControl "180+2"]
[EndTime "14:08:09 PDT"]
[Termination "PaulfromSPb won by resignation"]

1. d4 {[%clk 0:03:01.9]} 1... Nf6 {[%clk 0:02:41.3]} 2. Bf4 {[%clk 0:03:01.7]}
2... d5 {[%clk 0:02:38.2]} 3. e3 {[%clk 0:02:59.3]} 3... c5 {[%clk 0:02:38.1]}
4. c3 {[%clk 0:02:56.8]} 4... Qb6 {[%clk 0:02:38.7]} 5. Qb3 {[%clk 0:02:56.8]}
5... c4 {[%clk 0:02:39.7]} 6. Qc2 {[%clk 0:02:57.1]} 6... Nc6 {[%clk 0:02:36.8]}
7. Nd2 {[%clk 0:02:55.7]} 7... g6 {[%clk 0:02:35.8]} 8. e4 {[%clk 0:02:56.5]}
8... dxe4 {[%clk 0:02:36.5]} 9. Nxc4 {[%clk 0:02:49.1]} 9... Qd8 {[%clk
0:02:35.1]} 10. Be2 {[%clk 0:02:31.9]} 10... Bg7 {[%clk 0:02:31.2]} 11. h4
{[%clk 0:02:32.5]} 11... O-O {[%clk 0:02:31.1]} 12. h5 {[%clk 0:02:32.9]} 12...
Bf5 {[%clk 0:02:32.1]} 13. Ne3 {[%clk 0:02:29]} 13... e6 {[%clk 0:02:30.2]} 14.
Nxf5 {[%clk 0:02:26.6]} 14... exf5 {[%clk 0:02:30.8]} 15. hxg6 {[%clk
0:02:06.8]} 15... fxg6 {[%clk 0:02:31.3]} 16. Bc4+ {[%clk 0:02:04.4]} 16... Kh8
{[%clk 0:02:31.9]} 17. Nh3 {[%clk 0:02:04.6]} 17... Rc8 {[%clk 0:02:31.6]} 18.
Ng5 {[%clk 0:02:02.4]} 18... Qe7 {[%clk 0:02:27.2]} 19. Ne6 {[%clk 0:01:12.3]}
19... Nxd4 {[%clk 0:02:22.6]} 20. Nxd4 {[%clk 0:00:21.4]} 20... Rxc4 {[%clk
0:02:22.2]} 21. Bh6 {[%clk 0:00:22]} 21... Bxh6 {[%clk 0:02:19]} 22. Rxh6 {[%clk
0:00:23.6]} 22... Kg7 {[%clk 0:02:20.8]} 23. Rh3 {[%clk 0:00:20.7]} 23... Rfc8
{[%clk 0:02:19.6]} 24. Qd2 {[%clk 0:00:21.6]} 24... Kh8 {[%clk 0:02:19.8]} 25.
Rd1 {[%clk 0:00:21]} 25... Ng4 {[%clk 0:02:14.2]} 26. Qf4 {[%clk 0:00:18.3]}
26... Qe5 {[%clk 0:02:13.5]} 27. Qg5 {[%clk 0:00:16.4]} 27... Qf6 {[%clk
0:02:14.1]} 28. Qf4 {[%clk 0:00:15.4]} 28... Re8 {[%clk 0:02:13.7]} 29. Kf1
{[%clk 0:00:15.2]} 29... Rc5 {[%clk 0:02:08]} 30. Kg1 {[%clk 0:00:16]} 30...
Rce5 {[%clk 0:02:08.9]} 31. Nc2 {[%clk 0:00:15]} 31... Rd8 {[%clk 0:02:05.4]}
32. Ne3 {[%clk 0:00:14.7]} 32... Rxd1+ {[%clk 0:02:04]} 33. Nxd1 {[%clk
0:00:16.6]} 33... Re8 {[%clk 0:02:02.8]} 34. Ne3 {[%clk 0:00:17.3]} 34... Nxe3
{[%clk 0:02:03.5]} 35. Qxe3 {[%clk 0:00:18.2]} 35... b6 {[%clk 0:02:01.3]} 36.
Qh6 {[%clk 0:00:19]} 36... Re7 {[%clk 0:02:02.6]} 37. Qf4 {[%clk 0:00:18.6]}
37... Kg7 {[%clk 0:02:01.6]} 38. Qb8 {[%clk 0:00:18.1]} 38... Qe5 {[%clk
0:02:00.7]} 39. Qd8 {[%clk 0:00:13.4]} 39... Qe6 {[%clk 0:02:01.4]} 40. Qd4+
{[%clk 0:00:13.7]} 40... Qe5 {[%clk 0:02:02.4]} 41. Qd8 {[%clk 0:00:14.6]} 41...
f4 {[%clk 0:02:02.9]} 42. Kf1 {[%clk 0:00:08.7]} 42... e3 {[%clk 0:02:04.1]} 43.
fxe3 {[%clk 0:00:09.9]} 43... fxe3 {[%clk 0:02:06]} 44. Ke2 {[%clk 0:00:10.3]}
44... Qb5+ {[%clk 0:02:05.8]} 45. Qd3 {[%clk 0:00:09]} 45... Qxd3+ {[%clk
0:02:06.1]} 46. Kxd3 {[%clk 0:00:10.9]} 46... e2 {[%clk 0:02:08]} 0-1

[Event "*** Titled Tuesday Blitz"]
[Site "Chess.com"]
[Date "2019.05.07"]
[Round "5"]
[White "bugsbunny444"]
[Black "kintoho"]
[Result "1-0"]
[WhiteElo "2569"]
[BlackElo "2556"]
[TimeControl "180+2"]
[EndTime "14:08:12 PDT"]
[Termination "bugsbunny444 won by checkmate"]

1. Nf3 {[%clk 0:03:01.9]} 1... Nf6 {[%clk 0:02:57.7]} 2. c4 {[%clk 0:03:03.2]}
2... g6 {[%clk 0:02:56.7]} 3. b4 {[%clk 0:03:04.3]} 3... d5 {[%clk 0:02:57.5]}
4. cxd5 {[%clk 0:03:04.8]} 4... Bg7 {[%clk 0:02:54.7]} 5. Bb2 {[%clk 0:03:05]}
5... O-O {[%clk 0:02:55]} 6. g3 {[%clk 0:03:06.4]} 6... Nxd5 {[%clk 0:02:55.8]}
7. Bxg7 {[%clk 0:03:07.9]} 7... Kxg7 {[%clk 0:02:56.5]} 8. Qb3 {[%clk
0:03:09.3]} 8... f6 {[%clk 0:02:53.9]} 9. Bg2 {[%clk 0:03:07.5]} 9... e5 {[%clk
0:02:54]} 10. d3 {[%clk 0:03:05.8]} 10... Be6 {[%clk 0:02:53.7]} 11. Qb2 {[%clk
0:03:02.5]} 11... Qd6 {[%clk 0:02:52.4]} 12. a3 {[%clk 0:03:02.7]} 12... a5
{[%clk 0:02:53.2]} 13. b5 {[%clk 0:03:03.4]} 13... c5 {[%clk 0:02:49.5]} 14.
Nbd2 {[%clk 0:03:03]} 14... b6 {[%clk 0:02:47.2]} 15. Nc4 {[%clk 0:02:53.5]}
15... Qc7 {[%clk 0:02:47.9]} 16. O-O {[%clk 0:02:41.4]} 16... Nd7 {[%clk
0:02:48]} 17. Rac1 {[%clk 0:02:38.7]} 17... Rab8 {[%clk 0:02:47]} 18. e3 {[%clk
0:02:13.7]} 18... Bf7 {[%clk 0:02:44.9]} 19. d4 {[%clk 0:02:11]} 19... exd4
{[%clk 0:02:45.2]} 20. exd4 {[%clk 0:02:11.8]} 20... Rfd8 {[%clk 0:02:41.2]} 21.
Rfd1 {[%clk 0:02:09.5]} 21... Kg8 {[%clk 0:02:33]} 22. Nfd2 {[%clk 0:01:31.4]}
22... Nf8 {[%clk 0:02:14]} 23. dxc5 {[%clk 0:01:22.5]} 23... bxc5 {[%clk
0:02:15.2]} 24. Ne4 {[%clk 0:01:17]} 24... Qe7 {[%clk 0:02:09.2]} 25. Rxd5
{[%clk 0:01:11]} 25... Bxd5 {[%clk 0:02:01.7]} 26. Nxf6+ {[%clk 0:01:10.1]}
26... Kh8 {[%clk 0:01:54.7]} 27. Nh5+ {[%clk 0:00:46.3]} 27... Kg8 {[%clk
0:01:52.3]} 28. Bxd5+ {[%clk 0:00:46.8]} 28... Rxd5 {[%clk 0:01:50.9]} 29. Nf6+
{[%clk 0:00:47.9]} 29... Kf7 {[%clk 0:01:49.2]} 30. Nxd5 {[%clk 0:00:48.9]}
30... Qe6 {[%clk 0:01:49.4]} 31. Ne5+ {[%clk 0:00:45.9]} 31... Kg8 {[%clk
0:01:49.8]} 32. Ng4 {[%clk 0:00:40.1]} 32... h5 {[%clk 0:01:28.5]} 33. Ngf6+
{[%clk 0:00:37.2]} 33... Kf7 {[%clk 0:01:29.6]} 34. Rxc5 {[%clk 0:00:28.9]}
34... Rb7 {[%clk 0:01:27.7]} 35. b6 {[%clk 0:00:25.9]} 35... g5 {[%clk
0:01:26.8]} 36. Rc7+ {[%clk 0:00:26.8]} 36... Rxc7 {[%clk 0:01:26.2]} 37. bxc7
{[%clk 0:00:28.7]} 37... Ng6 {[%clk 0:01:24.8]} 38. Qb7 {[%clk 0:00:24.3]} 38...
Ne7 {[%clk 0:01:24.1]} 39. c8=Q {[%clk 0:00:19.6]} 39... Qxc8 {[%clk 0:01:21.9]}
40. Qxe7+ {[%clk 0:00:19.8]} 40... Kg6 {[%clk 0:01:23.2]} 41. Qh7# {[%clk
0:00:19.6]} 1-0

[Event "*** Titled Tuesday Blitz"]
[Site "Chess.com"]
[Date "2019.05.07"]
[Round "5"]
[White "ShimanovAlex"]
[Black "c63_amg"]
[Result "1-0"]
[WhiteElo "2842"]
[BlackElo "2666"]
[TimeControl "180+2"]
[EndTime "14:08:19 PDT"]
[Termination "ShimanovAlex won by resignation"]

1. d4 {[%clk 0:03:01.9]} 1... Nf6 {[%clk 0:03:00.5]} 2. Bf4 {[%clk 0:03:02.8]}
2... e6 {[%clk 0:03:02.4]} 3. e3 {[%clk 0:03:03.2]} 3... c5 {[%clk 0:02:51.9]}
4. Nf3 {[%clk 0:03:01.4]} 4... Nc6 {[%clk 0:02:45.8]} 5. Nc3 {[%clk 0:02:55.5]}
5... Nh5 {[%clk 0:02:19.9]} 6. Bg5 {[%clk 0:02:54.3]} 6... Qa5 {[%clk
0:01:55.3]} 7. d5 {[%clk 0:02:45.9]} 7... exd5 {[%clk 0:01:15.3]} 8. Qxd5 {[%clk
0:02:45.5]} 8... Nf6 {[%clk 0:01:16.9]} 9. Bxf6 {[%clk 0:02:45.7]} 9... gxf6
{[%clk 0:01:18.8]} 10. Bc4 {[%clk 0:02:46.6]} 10... Nd8 {[%clk 0:01:16.5]} 11.
O-O {[%clk 0:02:46]} 11... d6 {[%clk 0:01:15.5]} 12. Ne4 {[%clk 0:02:39.8]}
12... Be6 {[%clk 0:01:08.2]} 13. Qd3 {[%clk 0:02:36.7]} 13... Be7 {[%clk
0:00:54.4]} 14. Rfd1 {[%clk 0:02:22.4]} 14... Qc7 {[%clk 0:00:30.8]} 15. Nc3
{[%clk 0:02:18.3]} 15... Nc6 {[%clk 0:00:24.4]} 16. Nd5 {[%clk 0:02:19]} 16...
Bxd5 {[%clk 0:00:25.5]} 17. Bxd5 {[%clk 0:02:20.9]} 17... O-O-O {[%clk
0:00:26.3]} 18. Nh4 {[%clk 0:02:20.6]} 18... f5 {[%clk 0:00:21.4]} 19. Nxf5
{[%clk 0:02:21.6]} 19... Bf6 {[%clk 0:00:22.4]} 20. c3 {[%clk 0:02:22.8]} 20...
Kb8 {[%clk 0:00:23.4]} 21. Rd2 {[%clk 0:02:14.9]} 21... Rhg8 {[%clk 0:00:24.4]}
22. Rad1 {[%clk 0:02:14.8]} 22... Rg5 {[%clk 0:00:23.5]} 23. Ng3 {[%clk
0:02:10.4]} 23... h5 {[%clk 0:00:23.9]} 24. Ne4 {[%clk 0:02:10.8]} 24... Ne5
{[%clk 0:00:20.6]} 25. Qe2 {[%clk 0:02:10.6]} 25... Rg6 {[%clk 0:00:21.5]} 26.
Qxh5 {[%clk 0:02:06.6]} 26... Rh8 {[%clk 0:00:21.5]} 27. Qf5 {[%clk 0:02:07.3]}
27... Qe7 {[%clk 0:00:19.8]} 28. Ng3 {[%clk 0:01:37.7]} 28... Bg7 {[%clk
0:00:19]} 29. Qe4 {[%clk 0:01:34.4]} 29... Rgh6 {[%clk 0:00:14.3]} 30. h3 {[%clk
0:01:31.6]} 30... Qg5 {[%clk 0:00:14.1]} 31. Qf4 {[%clk 0:01:29.9]} 31... Qxf4
{[%clk 0:00:06.5]} 32. exf4 {[%clk 0:01:30.5]} 32... Ng6 {[%clk 0:00:08.4]} 33.
Nf5 {[%clk 0:01:31.5]} 33... R6h7 {[%clk 0:00:09.4]} 34. g3 {[%clk 0:01:29.9]}
34... Bf6 {[%clk 0:00:07.8]} 35. h4 {[%clk 0:01:30.9]} 35... Rh5 {[%clk
0:00:08.2]} 36. Nxd6 {[%clk 0:01:31.1]} 36... Nxh4 {[%clk 0:00:09.1]} 37. gxh4
{[%clk 0:01:31.6]} 37... Rxh4 {[%clk 0:00:09.7]} 38. Nxf7 {[%clk 0:01:31.4]}
38... Rg8+ {[%clk 0:00:09.1]} 39. Ng5 {[%clk 0:01:31.1]} 39... Rg7 {[%clk
0:00:08.1]} 40. Bg2 {[%clk 0:01:30.8]} 40... Rxf4 {[%clk 0:00:08.3]} 41. Rd8+
{[%clk 0:01:28.6]} 41... Bxd8 {[%clk 0:00:06]} 42. Rxd8+ {[%clk 0:01:30.5]}
42... Kc7 {[%clk 0:00:07.6]} 43. Ne6+ {[%clk 0:01:32.1]} 1-0

[Event "*** Titled Tuesday Blitz"]
[Site "Chess.com"]
[Date "2019.05.07"]
[Round "5"]
[White "PawnEatingZombie"]
[Black "stepanosinovsky"]
[Result "0-1"]
[WhiteElo "2155"]
[BlackElo "2401"]
[TimeControl "180+2"]
[EndTime "14:08:32 PDT"]
[Termination "stepanosinovsky won by checkmate"]

1. d4 {[%clk 0:02:54.1]} 1... Nf6 {[%clk 0:02:58.6]} 2. c4 {[%clk 0:02:55.1]}
2... g6 {[%clk 0:03:00]} 3. Nc3 {[%clk 0:02:56.3]} 3... Bg7 {[%clk 0:03:01.5]}
4. e4 {[%clk 0:02:56.9]} 4... O-O {[%clk 0:03:03.4]} 5. Be2 {[%clk 0:02:57.9]}
5... d6 {[%clk 0:03:04.5]} 6. Be3 {[%clk 0:02:59.2]} 6... e5 {[%clk 0:03:02.9]}
7. d5 {[%clk 0:02:59.5]} 7... a5 {[%clk 0:02:55.9]} 8. g4 {[%clk 0:03:00.1]}
8... Na6 {[%clk 0:02:48]} 9. h4 {[%clk 0:02:59.8]} 9... Nc5 {[%clk 0:02:48.5]}
10. f3 {[%clk 0:03:00.3]} 10... h5 {[%clk 0:02:46]} 11. g5 {[%clk 0:03:00.6]}
11... Nfd7 {[%clk 0:02:46.3]} 12. Qd2 {[%clk 0:02:50.5]} 12... a4 {[%clk
0:02:41.6]} 13. Nh3 {[%clk 0:02:50.7]} 13... Kh8 {[%clk 0:02:38.4]} 14. O-O-O
{[%clk 0:02:47.6]} 14... Nb6 {[%clk 0:02:21.2]} 15. Kb1 {[%clk 0:02:44.8]} 15...
Bxh3 {[%clk 0:02:20.6]} 16. Rxh3 {[%clk 0:02:44.8]} 16... Qd7 {[%clk 0:02:18.1]}
17. Rhh1 {[%clk 0:02:45]} 17... Ra6 {[%clk 0:02:12.5]} 18. Bf1 {[%clk
0:02:44.2]} 18... Rfa8 {[%clk 0:02:12.2]} 19. Nb5 {[%clk 0:02:22]} 19... Ra5
{[%clk 0:01:59]} 20. Qc2 {[%clk 0:01:50.5]} 20... Kg8 {[%clk 0:01:53.2]} 21. Bh3
{[%clk 0:01:40.5]} 21... Qd8 {[%clk 0:01:53.3]} 22. Bxc5 {[%clk 0:01:33.6]}
22... dxc5 {[%clk 0:01:54]} 23. d6 {[%clk 0:01:34.9]} 23... c6 {[%clk
0:01:40.9]} 24. Nc7 {[%clk 0:01:17.7]} 24... R8a7 {[%clk 0:01:41.4]} 25. Rhf1
{[%clk 0:00:59.4]} 25... Nd7 {[%clk 0:01:38.1]} 26. f4 {[%clk 0:00:41.7]} 26...
exf4 {[%clk 0:01:38.9]} 27. Rxf4 {[%clk 0:00:43]} 27... Ne5 {[%clk 0:01:38.4]}
28. Rff1 {[%clk 0:00:11.6]} 28... b6 {[%clk 0:01:39.2]} 29. Ne6 {[%clk 0:00:07]}
29... fxe6 {[%clk 0:01:39.1]} 30. Bxe6+ {[%clk 0:00:08.5]} 30... Kh7 {[%clk
0:01:40.1]} 31. d7 {[%clk 0:00:08.3]} 31... Ra8 {[%clk 0:01:37.1]} 32. Qd2
{[%clk 0:00:08.9]} 32... b5 {[%clk 0:01:33.3]} 33. Qd6 {[%clk 0:00:07.9]} 33...
bxc4 {[%clk 0:01:28.1]} 34. Bf5 {[%clk 0:00:04.8]} 34... Rb5 {[%clk 0:01:25.2]}
35. Bxg6+ {[%clk 0:00:03]} 35... Nxg6 {[%clk 0:01:27.1]} 36. Rf7 {[%clk
0:00:02.6]} 36... Rab8 {[%clk 0:01:18.8]} 37. Qe6 {[%clk 0:00:03]} 37... Rxb2+
{[%clk 0:01:16.2]} 38. Kc1 {[%clk 0:00:04.5]} 38... Rb1+ {[%clk 0:01:16.1]} 39.
Kc2 {[%clk 0:00:05.1]} 39... R8b2# {[%clk 0:01:16.1]} 0-1